[Event "Championnat d'Europe Rapide"]
[Date "2024.12.08"]
[White "Maltsevskaya, Aleksandra"]
[Black "Guliyev, Namig"]
[WhiteElo "2368"]
[BlackElo "2484"]
[Round "7.34"]
[Result "1-0"]
[TimeControl "900+10"]

1. e4 {[%emt 00:00:02] [%clk 00:15:17]} c5 {[%emt 00:00:03] [%clk 00:15:18]} 2.
Nf3 {[%emt 00:00:02] [%clk 00:15:24]} d6 {[%emt 00:00:02] [%clk 00:15:26]} 3. d4
{[%emt 00:00:04] [%clk 00:15:31]} cxd4 {[%emt 00:00:02] [%clk 00:15:34]} 4. Nxd4
{[%emt 00:00:02] [%clk 00:15:38]} Nf6 {[%emt 00:00:01] [%clk 00:15:42]} 5. Nc3
{[%emt 00:00:08] [%clk 00:15:40]} a6 {[%emt 00:00:02] [%clk 00:15:51]} 6. g3
{[%emt 00:00:02] [%clk 00:15:48]} e6 {[%emt 00:00:02] [%clk 00:15:59]} 7. Bg2
{[%emt 00:00:02] [%clk 00:15:55]} Be7 {[%emt 00:00:02] [%clk 00:16:07]} 8. O-O
{[%emt 00:00:04] [%clk 00:16:01]} Bd7 {[%emt 00:00:03] [%clk 00:16:14]} 9. Re1
{[%emt 00:01:10] [%clk 00:15:01]} Nc6 {[%emt 00:00:18] [%clk 00:16:06]} 10. Nxc6
{[%emt 00:01:54] [%clk 00:13:17]} Bxc6 {[%emt 00:00:01] [%clk 00:16:15]} 11. Bf4
{[%emt 00:00:02] [%clk 00:13:25]} Qb6 {[%emt 00:02:46] [%clk 00:13:39]} 12. Bxd6
{[%emt 00:06:07] [%clk 00:07:28]} Rd8 {[%emt 00:00:55] [%clk 00:12:54]} 13. e5
{[%emt 00:00:02] [%clk 00:07:36]} Bxg2 {[%emt 00:00:47] [%clk 00:12:16]} 14.
Kxg2 {[%emt 00:00:02] [%clk 00:07:43]} Bxd6 {[%emt 00:00:50] [%clk 00:11:37]}
15. exf6 {[%emt 00:00:02] [%clk 00:07:51]} gxf6 {[%emt 00:00:26] [%clk
00:11:21]} 16. Qf3 {[%emt 00:00:02] [%clk 00:07:59]} Be5 {[%emt 00:00:19] [%clk
00:11:13]} 17. Ne4 {[%emt 00:00:02] [%clk 00:08:07]} Ke7 {[%emt 00:00:44] [%clk
00:10:39]} 18. c3 {[%emt 00:00:44] [%clk 00:07:32]} Rd7 {[%emt 00:00:22] [%clk
00:10:27]} 19. Re2 {[%emt 00:00:10] [%clk 00:07:32]} Qc6 {[%emt 00:00:41] [%clk
00:09:57]} 20. Rae1 {[%emt 00:01:19] [%clk 00:06:23]} h5 {[%emt 00:02:40] [%clk
00:07:26]} 21. h4 {[%emt 00:00:11] [%clk 00:06:22]} b6 {[%emt 00:02:22] [%clk
00:05:15]} 22. Ng5 {[%emt 00:04:00] [%clk 00:02:32]} Qxf3+ {[%emt 00:00:58]
[%clk 00:04:27]} 23. Nxf3 {[%emt 00:00:02] [%clk 00:02:39]} Bb8 {[%emt 00:00:04]
[%clk 00:04:33]} 24. Nd4 {[%emt 00:00:03] [%clk 00:02:47]} Rc8 {[%emt 00:00:11]
[%clk 00:04:32]} 25. Rd1 {[%emt 00:01:21] [%clk 00:01:36]} Rd5 {[%emt 00:00:34]
[%clk 00:04:08]} 26. Rd3 {[%emt 00:00:02] [%clk 00:01:44]} Kd7 {[%emt 00:00:42]
[%clk 00:03:36]} 27. Rf3 {[%emt 00:00:11] [%clk 00:01:43]} Be5 {[%emt 00:00:23]
[%clk 00:03:24]} 28. Nc2 {[%emt 00:00:10] [%clk 00:01:43]} b5 {[%emt 00:00:29]
[%clk 00:03:05]} 29. Nb4 {[%emt 00:00:02] [%clk 00:01:50]} Rd6 {[%emt 00:00:02]
[%clk 00:03:13]} 30. Nd3 {[%emt 00:00:02] [%clk 00:01:57]} Ke7 {[%emt 00:00:47]
[%clk 00:02:37]} 31. Nxe5 {[%emt 00:01:18] [%clk 00:00:49]} fxe5 {[%emt
00:00:01] [%clk 00:02:46]} 32. Rxe5 {[%emt 00:00:01] [%clk 00:00:57]} Rd2 {[%emt
00:00:01] [%clk 00:02:55]} 33. b4 {[%emt 00:00:25] [%clk 00:00:43]} Rxa2 {[%emt
00:00:58] [%clk 00:02:07]} 34. Rxh5 {[%emt 00:00:02] [%clk 00:00:51]} f5 {[%emt
00:00:23] [%clk 00:01:54]} 35. Rh7+ {[%emt 00:00:33] [%clk 00:00:27]} Kf6 {[%emt
00:00:07] [%clk 00:01:57]} 36. Re3 {[%emt 00:00:07] [%clk 00:00:30]} Rc6 {[%emt
00:00:07] [%clk 00:02:00]} 37. Rd7 {[%emt 00:00:25] [%clk 00:00:16]} Ra3 {[%emt
00:00:15] [%clk 00:01:55]} 38. Rdd3 {[%emt 00:00:02] [%clk 00:00:24]} e5 {[%emt
00:00:04] [%clk 00:02:00]} 39. Rd5 {[%emt 00:00:08] [%clk 00:00:26]} e4 {[%emt
00:00:08] [%clk 00:02:03]} 40. g4 {[%emt 00:00:01] [%clk 00:00:35]} fxg4 {[%emt
00:00:05] [%clk 00:02:08]} 41. Rxe4 {[%emt 00:00:01] [%clk 00:00:44]} Raxc3
{[%emt 00:00:07] [%clk 00:02:11]} 42. Rxg4 {[%emt 00:00:01] [%clk 00:00:52]}
R3c4 {[%emt 00:00:05] [%clk 00:02:16]} 43. Kg3 {[%emt 00:00:08] [%clk 00:00:54]}
Rxg4+ {[%emt 00:00:34] [%clk 00:01:52]} 44. Kxg4 {[%emt 00:00:02] [%clk
00:01:03]} Rc4+ {[%emt 00:00:04] [%clk 00:01:58]} 45. f4 {[%emt 00:00:01] [%clk
00:01:11]} Rxb4 {[%emt 00:00:34] [%clk 00:01:35]} 46. Rd6+ {[%clk 00:01:20]} Kg7
{[%emt 00:00:03] [%clk 00:01:42]} 47. Rxa6 {[%emt 00:00:02] [%clk 00:01:29]} Rb1
{[%emt 00:00:01] [%clk 00:01:51]} 48. Kg5 {[%emt 00:00:20] [%clk 00:01:18]} Rg1+
{[%emt 00:00:05] [%clk 00:01:56]} 49. Kf5 {[%emt 00:00:01] [%clk 00:01:27]} b4
{[%emt 00:00:01] [%clk 00:02:04]} 50. Rb6 {[%emt 00:00:06] [%clk 00:01:31]} Rb1
{[%emt 00:00:02] [%clk 00:02:12]} 51. Rb7+ {[%emt 00:00:18] [%clk 00:01:23]} Kh6
{[%emt 00:00:03] [%clk 00:02:20]} 52. Kf6 {[%emt 00:00:01] [%clk 00:01:32]} b3
{[%emt 00:00:08] [%clk 00:02:22]} 53. f5 {[%emt 00:00:05] [%clk 00:01:36]} b2
{[%emt 00:00:09] [%clk 00:02:23]} 54. Rb5 {[%emt 00:01:24] [%clk 00:00:22]} Kh5
{[%emt 00:00:16] [%clk 00:02:17]} 55. Kf7 {[%emt 00:00:02] [%clk 00:00:30]} Kxh4
{[%emt 00:00:26] [%clk 00:02:01]} 56. f6 {[%emt 00:00:01] [%clk 00:00:39]} Kh3
{[%emt 00:00:13] [%clk 00:01:58]} 57. Rb4 {[%emt 00:00:08] [%clk 00:00:41]} Kh2
{[%emt 00:00:06] [%clk 00:02:02]} 58. Rb3 {[%emt 00:00:02] [%clk 00:00:50]} Kh1
{[%emt 00:00:09] [%clk 00:02:02]} 59. Rb4 {[%emt 00:00:10] [%clk 00:00:51]} Kg2
{[%emt 00:00:26] [%clk 00:01:45]} 60. Kg7 {[%emt 00:00:12] [%clk 00:00:49]} Kh3
{[%emt 00:00:03] [%clk 00:01:52]} 61. f7 {[%emt 00:00:46] [%clk 00:00:14]} Rg1+
{[%emt 00:00:02] [%clk 00:02:00]} 62. Kh6 {[%emt 00:00:02] [%clk 00:00:21]} Rf1
{[%emt 00:01:30] [%clk 00:00:40]} 63. Kg6 {[%emt 00:00:01] [%clk 00:00:30]}
b1=Q+ {[%emt 00:00:41] [%clk 00:00:11]} 64. Rxb1 {[%emt 00:00:48] [%clk
00:01:30]} Rxb1 {[%emt 00:00:01] [%clk 00:00:20]} 65. f8=Q {[%emt 00:00:03]
[%clk 00:01:37]} Rg1+ {[%emt 00:00:02] [%clk 00:00:28]} 66. Kh5 {[%emt 00:00:02]
[%clk 00:01:46]} Rg3 {[%emt 00:00:02] [%clk 00:00:35]} 67. Qf1+ {[%emt 00:00:10]
[%clk 00:01:46]} Kh2 {[%emt 00:00:02] [%clk 00:00:44]} 68. Qe1 {[%emt 00:00:23]
[%clk 00:01:33]} Rf3 {[%emt 00:00:23] [%clk 00:00:31]} 69. Kg4 {[%emt 00:00:10]
[%clk 00:01:33]} Rf8 {[%emt 00:00:20] [%clk 00:00:21]} 70. Qe5+ {[%emt 00:00:13]
[%clk 00:01:30]} Kh1 {[%emt 00:00:04] [%clk 00:00:28]} 71. Qd5+ {[%emt 00:00:02]
[%clk 00:01:38]} Kg1 {[%emt 00:00:08] [%clk 00:00:30]} 72. Qc5+ {[%emt 00:00:01]
[%clk 00:01:47]} 1-0

[Site "Europe Echecs"]

[Event "Championnat d'Europe Rapide"]
[Date "2024.12.08"]
[White "Dinev, Dejan"]
[Black "Janik, Igor"]
[WhiteElo "2209"]
[BlackElo "2515"]
[Round "7.35"]
[Result "0-1"]
[TimeControl "900+10"]

1. d4 {[%emt 00:00:15] [%clk 00:15:05]} Nf6 {[%emt 00:00:03] [%clk 00:15:07]} 2.
Nf3 {[%clk 00:15:14]} b6 {[%emt 00:00:14] [%clk 00:15:15]} 3. g3 {[%emt
00:00:02] [%clk 00:15:20]} Bb7 {[%emt 00:00:02] [%clk 00:15:23]} 4. Bg2 {[%emt
00:00:01] [%clk 00:15:29]} c5 {[%emt 00:00:02] [%clk 00:15:32]} 5. c3 {[%emt
00:00:04] [%clk 00:15:34]} g6 {[%emt 00:00:10] [%clk 00:15:32]} 6. O-O {[%emt
00:00:02] [%clk 00:15:42]} Bg7 {[%emt 00:00:02] [%clk 00:15:40]} 7. Nbd2 {[%emt
00:00:03] [%clk 00:15:49]} O-O {[%emt 00:00:03] [%clk 00:15:48]} 8. b3 {[%emt
00:00:06] [%clk 00:15:54]} a5 {[%emt 00:01:14] [%clk 00:14:43]} 9. Bb2 {[%emt
00:00:12] [%clk 00:15:52]} a4 {[%emt 00:00:18] [%clk 00:14:36]} 10. Re1 {[%emt
00:00:05] [%clk 00:15:56]} d5 {[%emt 00:01:01] [%clk 00:13:45]} 11. Ne5 {[%emt
00:00:15] [%clk 00:15:50]} e6 {[%emt 00:00:10] [%clk 00:13:45]} 12. Rc1 {[%emt
00:00:51] [%clk 00:15:09]} Nbd7 {[%emt 00:00:24] [%clk 00:13:31]} 13. c4 {[%emt
00:00:41] [%clk 00:14:38]} Nxe5 {[%emt 00:01:21] [%clk 00:12:19]} 14. dxe5
{[%emt 00:00:01] [%clk 00:14:46]} Nd7 {[%emt 00:00:10] [%clk 00:12:20]} 15. f4
{[%emt 00:00:17] [%clk 00:14:38]} Qb8 {[%emt 00:01:19] [%clk 00:11:11]} 16. cxd5
{[%emt 00:00:17] [%clk 00:14:31]} exd5 {[%emt 00:00:07] [%clk 00:11:15]} 17. e4
{[%emt 00:00:05] [%clk 00:14:36]} a3 {[%emt 00:00:31] [%clk 00:10:54]} 18. Ba1
{[%emt 00:00:16] [%clk 00:14:30]} d4 {[%emt 00:00:01] [%clk 00:11:03]} 19. b4
{[%emt 00:01:02] [%clk 00:13:39]} Rd8 {[%emt 00:01:21] [%clk 00:09:52]} 20. Nb3
{[%emt 00:00:12] [%clk 00:13:37]} Qa7 {[%emt 00:00:22] [%clk 00:09:39]} 21. Bf1
{[%emt 00:01:06] [%clk 00:12:41]} Rac8 {[%emt 00:01:16] [%clk 00:08:34]} 22. b5
{[%emt 00:00:17] [%clk 00:12:34]} Nf8 {[%emt 00:00:17] [%clk 00:08:27]} 23. Bc4
{[%emt 00:00:02] [%clk 00:12:42]} Rc7 {[%emt 00:00:13] [%clk 00:08:24]} 24. Qd3
{[%emt 00:00:13] [%clk 00:12:39]} Bc8 {[%emt 00:00:06] [%clk 00:08:28]} 25. Kg2
{[%emt 00:00:18] [%clk 00:12:31]} Qa4 {[%emt 00:00:42] [%clk 00:07:57]} 26. Nd2
{[%emt 00:00:48] [%clk 00:11:52]} Qa8 {[%emt 00:00:49] [%clk 00:07:18]} 27. Qf3
{[%emt 00:00:26] [%clk 00:11:36]} h5 {[%emt 00:00:23] [%clk 00:07:05]} 28. h3
{[%emt 00:00:03] [%clk 00:11:42]} Bh6 {[%emt 00:00:24] [%clk 00:06:52]} 29. Re2
{[%emt 00:00:20] [%clk 00:11:32]} Ne6 {[%emt 00:00:36] [%clk 00:06:26]} 30. Kh2
{[%emt 00:01:27] [%clk 00:10:15]} h4 {[%emt 00:00:25] [%clk 00:06:11]} 31. f5
{[%emt 00:01:06] [%clk 00:09:19]} hxg3+ {[%emt 00:00:52] [%clk 00:05:29]} 32.
Kg1 {[%emt 00:00:35] [%clk 00:08:54]} gxf5 {[%emt 00:01:14] [%clk 00:04:25]} 33.
Qxf5 {[%emt 00:05:32] [%clk 00:03:31]} Nf4 {[%emt 00:00:27] [%clk 00:04:08]} 34.
Qf6 {[%emt 00:00:10] [%clk 00:03:32]} Nxh3+ {[%emt 00:00:57] [%clk 00:03:21]}
35. Kf1 {[%emt 00:00:11] [%clk 00:03:30]} Bg5 {[%emt 00:00:03] [%clk 00:03:29]}
36. Qg6+ {[%emt 00:00:12] [%clk 00:03:28]} Kf8 {[%emt 00:00:04] [%clk 00:03:35]}
37. Qh7 {[%emt 00:00:15] [%clk 00:03:23]} Bg4 {[%emt 00:01:17] [%clk 00:02:29]}
38. Rg2 {[%emt 00:00:33] [%clk 00:03:00]} Qc8 {[%emt 00:00:47] [%clk 00:01:53]}
39. Rxg3 {[%emt 00:00:24] [%clk 00:02:45]} Bxd2 {[%emt 00:00:13] [%clk
00:01:50]} 40. Qh8+ {[%emt 00:00:04] [%clk 00:02:50]} Ke7 {[%clk 00:02:00]} 41.
Qf6+ {[%emt 00:00:04] [%clk 00:02:56]} Ke8 {[%clk 00:02:09]} 42. Qg7 {[%emt
00:00:39] [%clk 00:02:27]} Re7 {[%emt 00:00:24] [%clk 00:01:55]} 43. Rc2 {[%emt
00:00:23] [%clk 00:02:15]} Bg5 {[%emt 00:00:32] [%clk 00:01:32]} 44. Rcg2 {[%emt
00:00:24] [%clk 00:02:02]} Be6 {[%clk 00:01:41]} 45. Be2 {[%emt 00:01:21] [%clk
00:00:51]} Kd7 {[%emt 00:00:36] [%clk 00:01:16]} 46. Rxa3 {[%emt 00:00:05] [%clk
00:00:57]} Qb7 {[%emt 00:00:13] [%clk 00:01:13]} 47. Qh7 {[%emt 00:00:28] [%clk
00:00:38]} Bc1 {[%emt 00:00:17] [%clk 00:01:06]} 48. Rxh3 {[%emt 00:00:09] [%clk
00:00:38]} Bxh3 {[%emt 00:00:13] [%clk 00:01:04]} 49. Qxh3+ {[%emt 00:00:01]
[%clk 00:00:47]} Kc7 {[%emt 00:00:01] [%clk 00:01:13]} 50. Qf5 {[%emt 00:00:07]
[%clk 00:00:50]} Kb8 {[%emt 00:00:06] [%clk 00:01:18]} 51. Bc4 {[%emt 00:00:06]
[%clk 00:00:54]} Qd7 {[%emt 00:00:19] [%clk 00:01:09]} 52. Qf6 {[%emt 00:00:08]
[%clk 00:00:56]} Re6 {[%clk 00:01:18]} 53. Bxe6 {[%emt 00:00:20] [%clk
00:00:46]} fxe6 {[%clk 00:01:27]} 54. Rg7 {[%emt 00:00:03] [%clk 00:00:53]} Qe8
{[%emt 00:00:04] [%clk 00:01:34]} 55. a4 {[%emt 00:00:15] [%clk 00:00:49]} d3
{[%emt 00:00:14] [%clk 00:01:29]} 56. Bc3 {[%emt 00:00:25] [%clk 00:00:34]} d2
{[%clk 00:01:39]} 57. Bxd2 {[%emt 00:00:03] [%clk 00:00:41]} Bxd2 {[%emt
00:00:01] [%clk 00:01:48]} 58. Rh7 {[%emt 00:00:17] [%clk 00:00:34]} Bc3 {[%emt
00:01:22] [%clk 00:00:35]} 59. Ke2 {[%emt 00:00:20] [%clk 00:00:24]} Qf8 {[%emt
00:00:09] [%clk 00:00:36]} 60. Rf7 {[%emt 00:00:18] [%clk 00:00:16]} Qh8 {[%emt
00:00:16] [%clk 00:00:31]} 61. Qxe6 {[%emt 00:00:04] [%clk 00:00:22]} Qh2+
{[%emt 00:00:13] [%clk 00:00:28]} 62. Ke3 {[%emt 00:00:09] [%clk 00:00:23]} Bd2+
{[%emt 00:00:18] [%clk 00:00:19]} 63. Kf3 {[%emt 00:00:08] [%clk 00:00:25]} Rd3+
{[%emt 00:00:01] [%clk 00:00:28]} 64. Kg4 {[%emt 00:00:08] [%clk 00:00:27]} Qh3#
{[%emt 00:00:01] [%clk 00:00:36]} 0-1

[Site "Europe Echecs"]

[Event "Championnat d'Europe Rapide"]
[Date "2024.12.08"]
[White "Schneider, Ilja"]
[Black "Maier, Christian"]
[WhiteElo "2414"]
[BlackElo "2235"]
[Round "7.36"]
[Result "1-0"]
[TimeControl "900+10"]

1. Nf3 {[%emt 00:00:05] [%clk 00:15:14]} Nc6 {[%emt 00:00:08] [%clk 00:15:12]}
2. e4 {[%emt 00:00:17] [%clk 00:15:07]} e5 {[%emt 00:00:02] [%clk 00:15:20]} 3.
Nc3 {[%emt 00:00:15] [%clk 00:15:02]} Nf6 {[%emt 00:00:11] [%clk 00:15:19]} 4.
d4 {[%emt 00:00:03] [%clk 00:15:09]} exd4 {[%emt 00:00:04] [%clk 00:15:25]} 5.
Nxd4 {[%emt 00:00:02] [%clk 00:15:18]} Bb4 {[%emt 00:00:02] [%clk 00:15:32]} 6.
Nxc6 {[%emt 00:00:02] [%clk 00:15:26]} bxc6 {[%emt 00:00:02] [%clk 00:15:40]} 7.
Bd3 {[%emt 00:00:02] [%clk 00:15:33]} d5 {[%emt 00:00:15] [%clk 00:15:35]} 8.
Bd2 {[%emt 00:00:09] [%clk 00:15:34]} O-O {[%emt 00:00:07] [%clk 00:15:39]} 9.
O-O {[%emt 00:00:02] [%clk 00:15:42]} Re8 {[%emt 00:00:42] [%clk 00:15:07]} 10.
Nxd5 {[%emt 00:00:47] [%clk 00:15:06]} Nxd5 {[%emt 00:00:21] [%clk 00:14:55]}
11. exd5 {[%emt 00:00:01] [%clk 00:15:14]} Bxd2 {[%emt 00:00:02] [%clk
00:15:03]} 12. Qxd2 {[%emt 00:00:01] [%clk 00:15:23]} cxd5 {[%emt 00:00:01]
[%clk 00:15:11]} 13. b4 {[%emt 00:00:01] [%clk 00:15:32]} d4 {[%emt 00:01:15]
[%clk 00:14:06]} 14. Rfd1 {[%emt 00:02:35] [%clk 00:13:07]} Bb7 {[%emt 00:01:39]
[%clk 00:12:37]} 15. Bf1 {[%emt 00:00:11] [%clk 00:13:05]} Re6 {[%emt 00:00:09]
[%clk 00:12:38]} 16. Qxd4 {[%emt 00:00:16] [%clk 00:12:59]} Qg5 {[%emt 00:00:18]
[%clk 00:12:31]} 17. Rd3 {[%emt 00:01:01] [%clk 00:12:08]} g6 {[%emt 00:02:39]
[%clk 00:10:02]} 18. Re3 {[%emt 00:03:13] [%clk 00:09:05]} Rxe3 {[%emt 00:01:30]
[%clk 00:08:42]} 19. Qxe3 {[%emt 00:00:01] [%clk 00:09:14]} Qxe3 {[%emt
00:00:37] [%clk 00:08:14]} 20. fxe3 {[%emt 00:00:01] [%clk 00:09:23]} Rd8 {[%emt
00:00:02] [%clk 00:08:22]} 21. Bd3 {[%emt 00:00:01] [%clk 00:09:32]} f5 {[%emt
00:00:10] [%clk 00:08:21]} 22. Rd1 {[%emt 00:00:11] [%clk 00:09:30]} Kg7 {[%emt
00:00:04] [%clk 00:08:29]} 23. Be2 {[%emt 00:00:25] [%clk 00:09:15]} Rxd1+
{[%emt 00:00:12] [%clk 00:08:27]} 24. Bxd1 {[%emt 00:00:01] [%clk 00:09:24]} Be4
{[%emt 00:00:22] [%clk 00:08:15]} 25. Kf2 {[%emt 00:00:14] [%clk 00:09:19]} Kf6
{[%emt 00:00:02] [%clk 00:08:24]} 26. c4 {[%emt 00:01:35] [%clk 00:07:54]} Ke5
{[%emt 00:00:03] [%clk 00:08:31]} 27. Bf3 {[%emt 00:00:04] [%clk 00:07:59]} Bd3
{[%emt 00:00:05] [%clk 00:08:36]} 28. c5 {[%emt 00:00:41] [%clk 00:07:28]} g5
{[%emt 00:01:39] [%clk 00:07:06]} 29. Ke1 {[%emt 00:00:41] [%clk 00:06:57]} Bc4
{[%emt 00:01:55] [%clk 00:05:22]} 30. a3 {[%emt 00:00:24] [%clk 00:06:43]} Bf7
{[%emt 00:00:28] [%clk 00:05:04]} 31. Kd2 {[%emt 00:00:19] [%clk 00:06:35]} h5
{[%emt 00:00:01] [%clk 00:05:12]} 32. a4 {[%emt 00:00:55] [%clk 00:05:50]} h4
{[%emt 00:00:22] [%clk 00:04:59]} 33. Kc3 {[%emt 00:03:18] [%clk 00:02:43]} g4
{[%emt 00:00:27] [%clk 00:04:42]} 34. Bc6 {[%emt 00:00:01] [%clk 00:02:51]} Be6
{[%emt 00:03:52] [%clk 00:01:01]} 35. b5 {[%emt 00:00:39] [%clk 00:02:23]} Bd5
{[%emt 00:00:42] [%clk 00:00:29]} 36. Bxd5 Kxd5 {[%clk 00:00:38]} 37. c6 {[%emt
00:00:23] [%clk 00:02:18]} Kc5 {[%emt 00:00:28] [%clk 00:00:20]} 38. g3 {[%emt
00:00:11] [%clk 00:02:18]} h3 {[%emt 00:00:04] [%clk 00:00:25]} 39. Kb3 {[%emt
00:00:09] [%clk 00:02:19]} a6 {[%emt 00:00:13] [%clk 00:00:23]} 40. bxa6 {[%emt
00:00:03] [%clk 00:02:26]} Kxc6 {[%emt 00:00:02] [%clk 00:00:31]} 41. a5 {[%emt
00:00:04]} 1-0

[Site "Europe Echecs"]

[Event "Championnat d'Europe Rapide"]
[Date "2024.12.08"]
[White "Rodriguez Fontecha, Marcos"]
[Black "Alienkin, Aleksander"]
[WhiteElo "2278"]
[BlackElo "2337"]
[Round "7.37"]
[Result "1-0"]
[TimeControl "900+10"]

1. Nf3 {[%emt 00:00:03] [%clk 00:15:16]} Nf6 {[%emt 00:00:08] [%clk 00:15:11]}
2. d4 {[%emt 00:00:05] [%clk 00:15:22]} e6 {[%emt 00:00:44] [%clk 00:14:38]} 3.
Bg5 {[%emt 00:00:14] [%clk 00:15:17]} b6 {[%emt 00:00:19] [%clk 00:14:28]} 4. e3
{[%emt 00:00:12] [%clk 00:15:15]} Bb7 {[%emt 00:00:07] [%clk 00:14:32]} 5. Bd3
{[%emt 00:00:10] [%clk 00:15:14]} g6 {[%emt 00:00:22] [%clk 00:14:21]} 6. O-O
{[%emt 00:00:28] [%clk 00:14:56]} Bg7 {[%emt 00:00:04] [%clk 00:14:26]} 7. Nbd2
{[%emt 00:00:34] [%clk 00:14:32]} d6 {[%emt 00:00:25] [%clk 00:14:11]} 8. a4
{[%emt 00:00:31] [%clk 00:14:12]} a5 {[%emt 00:00:19] [%clk 00:14:03]} 9. e4
{[%emt 00:01:16] [%clk 00:13:06]} h6 {[%emt 00:00:13] [%clk 00:14:00]} 10. Bh4
{[%emt 00:00:12] [%clk 00:13:04]} g5 {[%emt 00:00:15] [%clk 00:13:55]} 11. Bg3
{[%emt 00:00:01] [%clk 00:13:12]} Nh5 {[%emt 00:00:03] [%clk 00:14:03]} 12. c3
{[%emt 00:00:53] [%clk 00:12:29]} Nd7 {[%emt 00:00:28] [%clk 00:13:44]} 13. Ne1
{[%emt 00:01:51] [%clk 00:10:48]} Nxg3 {[%emt 00:01:10] [%clk 00:12:44]} 14.
hxg3 {[%emt 00:00:24] [%clk 00:10:34]} O-O {[%emt 00:02:24] [%clk 00:10:30]} 15.
f4 {[%emt 00:00:39] [%clk 00:10:05]} e5 {[%emt 00:00:35] [%clk 00:10:05]} 16.
Nc2 {[%emt 00:00:56] [%clk 00:09:18]} c5 {[%emt 00:00:48] [%clk 00:09:27]} 17.
fxe5 {[%emt 00:01:00] [%clk 00:08:28]} dxe5 {[%emt 00:00:46] [%clk 00:08:50]}
18. d5 {[%emt 00:00:09] [%clk 00:08:30]} f5 {[%emt 00:00:41] [%clk 00:08:19]}
19. Ne3 {[%emt 00:00:58] [%clk 00:07:42]} f4 {[%emt 00:01:15] [%clk 00:07:14]}
20. Nf5 {[%emt 00:00:10] [%clk 00:07:42]} Nf6 {[%emt 00:00:38] [%clk 00:06:46]}
21. Nc4 {[%emt 00:01:54] [%clk 00:05:59]} fxg3 {[%emt 00:00:47] [%clk 00:06:09]}
22. Qb3 {[%emt 00:00:34] [%clk 00:05:35]} Ba6 {[%emt 00:00:39] [%clk 00:05:40]}
23. Rae1 {[%emt 00:02:47] [%clk 00:02:58]} Ng4 {[%emt 00:00:43] [%clk 00:05:06]}
24. Rf3 {[%emt 00:00:23] [%clk 00:02:45]} Rb8 {[%emt 00:01:26] [%clk 00:03:50]}
25. Rxg3 {[%emt 00:00:22] [%clk 00:02:33]} Nf6 {[%emt 00:00:27] [%clk 00:03:33]}
26. Nxe5 {[%emt 00:00:53] [%clk 00:01:50]} Bxd3 {[%emt 00:00:53] [%clk
00:02:50]} 27. Rxd3 {[%emt 00:00:24] [%clk 00:01:37]} Qe8 {[%emt 00:00:46] [%clk
00:02:14]} 28. Nc6 {[%emt 00:00:25] [%clk 00:01:22]} Ra8 {[%emt 00:00:12] [%clk
00:02:12]} 29. e5 {[%emt 00:00:35] [%clk 00:00:56]} Nh5 {[%emt 00:00:17] [%clk
00:02:05]} 30. d6+ {[%emt 00:00:25] [%clk 00:00:41]} Kh8 {[%emt 00:00:06] [%clk
00:02:09]} 31. d7 {[%emt 00:00:05] [%clk 00:00:46]} Qg6 {[%emt 00:00:12] [%clk
00:02:07]} 32. Nce7 {[%emt 00:00:19] [%clk 00:00:37]} Qh7 {[%emt 00:00:04] [%clk
00:02:13]} 33. Qxb6 {[%emt 00:00:19] [%clk 00:00:28]} Rad8 {[%emt 00:00:18]
[%clk 00:02:06]} 34. Ng6+ {[%emt 00:00:10] [%clk 00:00:28]} Kg8 {[%emt 00:00:03]
[%clk 00:02:13]} 35. Qe6+ {[%emt 00:00:02] [%clk 00:00:36]} 1-0

[Site "Europe Echecs"]